Cogmind - Beta 10.2 @@@ ROGUE MODE // 2021.07.08 @ 18:09:40 Player: Plexion Result: Destroyed by Enhanced Grunt with Neutron Cannon Performance ------------- Evolutions (3) 1500 Regions Visited (12) 2400 Robots Destroyed (102) 510 Value Destroyed (3680) 3680 Prototype IDs (38) 760 Alien Tech Used (0) 0 Bonus (1476) 1476 TOTAL SCORE: 10326 Bonus ------- High Alert Combat Kills 85 Follower Combat Kills 91 Entered Garrisons 200 Used RIF Installer 500 Aligned with FarCom 300 Met Data Miner 300 Cogmind --------- Core Integrity 0/700 Matter 202/300 Energy 145/170 System Corruption 0% Temperature Cool (12) Movement Core (1250) Ox24 Location -7/Data Miner Parts ------- > --- POWER (1) -------- Micro Fission Core > --- PROPULSION (2) --- (None) > --- UTILITY (8) ------ High-capacity Storage Unit High-capacity Storage Unit Advanced Signal Interpreter Relay Coupler [NC] (21) Relay Coupler [Duelist] (16) Relay Coupler [Sentry] (5) > --- WEAPON (2) ------- Wave Gun > --- INVENTORY (20) --- Light Treads Light Treads High-capacity Storage Unit Lightpack 2.0 Relay Coupler [Brawler] (28) Improved EM Shotgun Remote Datajack Remote Datajack Peak State ------------ > --- POWER ------------ Micro Fission Core > --- PROPULSION ------- Improved Treads Armored Treads > --- UTILITY ---------- High-capacity Storage Unit High-capacity Storage Unit Advanced Signal Interpreter Relay Coupler [NC] Relay Coupler [Duelist] Relay Coupler [Sentry] > --- WEAPON ----------- Gauss Rifle Chainsword > --- INVENTORY -------- Light Treads Light Treads Light Treads High-capacity Storage Unit Lightpack 2.0 Relay Coupler [Brawler] Improved EM Shotgun Wave Gun Heavy Assault Rifle Heavy Assault Rifle Heavy Assault Rifle Rocket Launcher Remote Datajack Remote Datajack [Rating: 37] Favorites ----------- Power Improved Ion Engine Engine Improved Ion Engine Power Core Micro Fission Core Propulsion Light Treads Treads Light Treads Utility High-capacity Storage Unit Device Heat Sink Storage High-capacity Storage Unit Processor Advanced Signal Interpreter Hackware Relay Coupler [Sentry] Protection Light Armor Plating Weapon Heavy Assault Rifle Energy Gun Improved EM Shotgun Energy Cannon Plasma Cannon Ballistic Gun Heavy Assault Rifle Launcher Rocket Launcher Special Weapon Remote Datajack Slashing Weapon Katana Build | -11 -10 -10 -9 -9 -9 -8 -8 -8 -7 -7 -7 -7 ------- Run | Scr Mat Min Mat Min Exi Min Mat Gar Fac Low Low Dat Slots Evolved 6 | . . . 2 . . . 2 . 2 . . . Power . | . . . . . . . . . . . . . Propulsion . | . . . . . . . . . . . . . Utility 6 | . . . 2 . . . 2 . 2 . . . Weapon . | . . . . . . . . . . . . . Parts Attached 100 | 6 2 3 27 1 5 . 4 13 13 8 8 10 Power 10 | 1 . 1 3 . . . . 2 1 1 1 . Engine 9 | 1 . 1 3 . . . . 2 1 1 . . Core 1 | . . . . . . . . . . . 1 . Reactor . | . . . . . . . . . . . . . Propulsion 19 | 2 . . 7 . . . . 2 4 2 1 1 Treads 19 | 2 . . 7 . . . . 2 4 2 1 1 Leg . | . . . . . . . . . . . . . Wheel . | . . . . . . . . . . . . . Hover . | . . . . . . . . . . . . . Flight . | . . . . . . . . . . . . . Utility 24 | 1 2 . 7 . 4 . 2 4 2 1 1 . Device 7 | . . . 3 . . . . 3 1 . . . Storage 7 | 1 2 . . . 4 . . . . . . . Processor 1 | . . . . . . . . . . . 1 . Hackware 3 | . . . . . . . . 1 1 1 . . Protection 6 | . . . 4 . . . 2 . . . . . Artifact . | . . . . . . . . . . . . . Weapon 47 | 2 . 2 10 1 1 . 2 5 6 4 5 9 Energy Gun 4 | . . . 3 . . . . . . . . 1 Energy Cannon 4 | . . . . . . . . . 3 1 . . Ballistic Gun 23 | 2 . 1 4 . 1 . 1 3 1 1 4 5 Ballistic Cannon . | . . . . . . . . . . . . . Launcher 11 | . . 1 3 1 . . . 2 1 1 1 1 Special Weapon 2 | . . . . . . . . . 1 1 . . Impact Weapon . | . . . . . . . . . . . . . Slashing Weapon 3 | . . . . . . . 1 . . . . 2 Piercing Weapon . | . . . . . . . . . . . . . Special Melee Weapon . | . . . . . . . . . . . . . Unidentified Prototypes 2 | . . . 2 . . . . . . . . . Parts Lost 32 | . . 1 3 1 . . 3 1 3 7 4 9 Power 5 | . . 1 1 . . . . . 1 1 1 . Propulsion 6 | . . . . . . . . . . 2 1 3 Utility 9 | . . . 2 . . . 3 1 1 1 1 . Weapon 12 | . . . . 1 . . . . 1 3 1 6 Highest Loss Streak 8 | . . 1 1 1 . . 3 1 1 6 2 8 Average Slot Usage (%) 90 | . 95 100 94 92 93 100 89 87 84 86 88 82 Engine 8 | . 14 14 10 11 11 11 9 9 6 6 4 . Treads 19 | . 28 28 22 22 22 22 18 18 15 14 14 13 Device 9 | . . . 6 . . . . 14 22 14 4 . Storage 18 | . 23 28 22 22 22 22 18 18 15 15 15 15 Hackware 6 | . . . . . . . . 5 8 17 23 23 Protection 6 | . . . 10 22 22 22 26 3 . . . . Energy Gun 2 | . . . 13 9 . . . . . . . . Energy Cannon 1 | . . . . . . . . . 4 6 . . Ballistic Gun 11 | . 28 27 8 . 4 11 15 15 8 6 10 12 Launcher 2 | . . . . 6 11 11 . 2 1 . 4 . Naked Turns . | . . . . . . . . . . . . . Heaviest Build 87 | 11 31 33 44 44 85 85 87 82 85 84 80 76 Greatest Support 56 | 40 40 40 43 40 40 40 40 40 56 56 43 43 Greatest Overweight (x) 3 | . . . 1 1 2 2 2 2 2 2 3 1 Average Overweight (x) . | . . . . 1 1 2 1 1 1 1 1 1 Largest Inventory Capacity 20 | 6 14 14 14 14 20 20 20 20 20 20 20 20 Average Capacity 17 | 4 11 14 14 14 17 20 20 20 20 20 20 20 Most Carried 20 | 3 8 11 14 14 15 14 16 20 20 20 16 15 Average Carried 15 | 1 6 8 13 14 13 14 15 17 19 19 15 14 Final Capacity 20 | 6 14 14 14 14 20 20 20 20 20 20 20 20 Final Carried 20 | 2 7 10 14 14 14 14 15 19 20 16 15 9 Class Distribution -------------------- 36% | Scavenger-Mutant 30% | Bothacker-Mutant 19% | Mutant 13% | Hauler-Mutant Dominant Class ---------------- Mutant | -10/Materials Mutant | -10/Mines Scavenger-Mutant | -9/Materials Scavenger-Mutant | -9/Mines Hauler-Mutant | -9/Exiles Hauler-Mutant | -8/Mines Scavenger-Mutant | -8/Materials Scavenger-Mutant | -8/Garrison Scavenger-Mutant | -7/Factory Bothacker-Mutant | -7/Lower Caves Bothacker-Mutant | -7/Lower Caves Bothacker-Mutant | -7/Data Miner Resources | -11 -10 -10 -9 -9 -9 -8 -8 -8 -7 -7 -7 -7 ----------- Run | Scr Mat Min Mat Min Exi Min Mat Gar Fac Low Low Dat Matter Collected 2292 | 198 262 61 626 12 . 22 174 301 321 70 245 . Remotely . | . . . . . . . . . . . . . Salvage Created 3390 | . 469 108 979 32 . 31 366 373 525 164 256 87 Parts 202 | . 31 9 61 . . 3 22 23 30 11 10 2 Haulers Intercepted 3 | . 2 . 1 . . . . . . . . . Recyclers Shooed 4 | . . . 1 . . . . . 3 . . . Parts Field Recycled . | . . . . . . . . . . . . . Retrieved Matter . | . . . . . . . . . . . . . Parts Self-Destructed 25 | . . . . . . . . . . 15 10 . Prevented . | . . . . . . . . . . . . . Kills | -11 -10 -10 -9 -9 -9 -8 -8 -8 -7 -7 -7 -7 ------- Run | Scr Mat Min Mat Min Exi Min Mat Gar Fac Low Low Dat Combat Hostiles Destroyed 85 | . 8 5 19 2 . 4 7 11 10 7 11 1 Melee 6 | . . . . . . . 5 . . . . 1 Guns 37 | . 8 4 12 1 . . 2 6 2 . 2 . Cannons 6 | . . . . . . . . . 4 2 . . AOE 36 | . . 1 7 1 . 4 . 5 4 5 9 . Classes Destroyed 14 | . 6 . 3 1 . 1 . . 2 . 1 . Worker 6 | . 2 . 3 . . . . . 1 . . . Builder 2 | . . . . . . 1 1 . . . . . Hauler 3 | . 2 . 1 . . . . . . . . . Recycler 3 | . 1 . . . . . . . 2 . . . Operator 3 | . 1 . 1 . . . . . 1 . . . Watcher 2 | . . . 2 . . . . . . . . . Swarmer 26 | . 3 3 . . . 4 . 3 4 2 7 . Grunt 32 | . 5 2 11 . . . 4 4 . 4 2 . Brawler 1 | . . . . . . . . . . . 1 . Duelist 4 | . . . 2 . . . . 1 . 1 . . Sentry 14 | . . . 6 . . . 3 3 1 . 1 . Hunter 2 | . . . . . . . . . 2 . . . Programmer 3 | . . . . . . . . . 3 . . . Enhanced Grunt 1 | . . . . . . . . . . . . 1 Assembled 2 | . . . . 2 . . . . . . . . Best Kill Streak 6 | . 5 3 5 1 . 5 5 3 5 5 6 1 Combat Bots Only 6 | . 3 3 4 1 . 4 5 3 4 5 6 1 Max Kills in Single Turn 4 | . 2 1 3 1 . 2 2 3 2 3 4 1 Gunslinging . | . . . . . . . . . . . . . Exploded 4 | . . 1 2 1 . 2 . 3 1 3 4 . Melee 1 | . . . . . . . 1 . . . . 1 Uniques/NPCs Destroyed . | . . . . . . . . . . . . . Combat | -11 -10 -10 -9 -9 -9 -8 -8 -8 -7 -7 -7 -7 -------- Run | Scr Mat Min Mat Min Exi Min Mat Gar Fac Low Low Dat Damage Taken 5824 | . 324 140 824 152 . 24 439 331 648 1023 706 1213 Core 942 | . 69 15 79 11 . . 30 35 63 154 104 382 Absorbed by Shields . | . . . . . . . . . . . . . Core Remaining (%) 82 | 100 . 66 . . . 77 . 88 . . . . Volleys Fired 224 | . 30 9 65 10 . 4 7 28 40 10 15 6 Largest 2 | . 2 2 2 2 . 1 2 2 2 2 2 2 Hottest 108 | . 40 40 90 90 . 33 46 46 108 108 56 81 Shots Fired 395 | . 60 16 123 18 . 4 14 48 65 16 24 7 Gun 324 | . 60 14 116 16 . . 14 44 32 6 18 4 Cannon 30 | . . . . . . . . . 24 6 . . Launcher 37 | . . 2 7 2 . 4 . 4 6 3 6 3 Special 4 | . . . . . . . . . 3 1 . . Kinetic 261 | . 60 14 70 . . . 14 44 32 6 18 3 Thermal 31 | . . . . . . . . . 24 6 . 1 Explosive 37 | . . 2 7 2 . 4 . 4 6 3 6 3 Electromagnetic 62 | . . . 46 16 . . . . . . . . Robot Hit Streak 23 | . 8 15 15 4 . 2 16 16 23 8 13 6 Robot Miss Streak 7 | . 2 1 3 3 . . . 1 7 4 3 1 Penetration Max . | . . . . . . . . . . . . . Secondary Targets 2 | . 1 . . . . . 1 . . . . . Max Gunslinging Chain 1 | . 1 . . . . . 1 . . . . . Shots Hit Robots 319 | . 41 13 96 15 . 2 29 37 45 12 18 11 Core Hits 206 | . 23 8 49 5 . 5 10 21 31 20 20 14 Critical Hits 4 | . 1 . 1 . . . 2 . . . . . Critical Kills 1 | . . . . . . . 1 . . . . . Critical Parts Destroyed 3 | . 1 . 1 . . . 1 . . . . . Melee Attacks 31 | . . . . . . . 21 . . . . 10 Impact . | . . . . . . . . . . . . . Slashing 31 | . . . . . . . 21 . . . . 10 Piercing . | . . . . . . . . . . . . . Sneak Attacks 1 | . . . . . . . . . . . . 1 Combat Hostiles . | . . . . . . . . . . . . . Follow-up Attacks . | . . . . . . . . . . . . . Damage Inflicted 8614 | . 483 304 2168 134 . 395 703 961 1164 848 920 534 Guns 3709 | . 483 165 1406 87 . . 219 510 374 128 272 65 Cannons 495 | . . . . . . . . . 393 102 . . Explosions 3677 | . . 139 762 47 . 395 . 451 393 618 648 224 Melee 729 | . . . . . . . 484 . . . . 245 Ramming 4 | . . . . . . . . . 4 . . . Kinetic 2994 | . 483 165 794 . . . 219 510 374 128 272 49 Thermal 628 | . . . 117 . . . . . 393 102 . 16 Explosive 3560 | . . 139 645 47 . 395 . 451 393 618 648 224 Electromagnetic 699 | . . . 612 87 . . . . . . . . Impact . | . . . . . . . . . . . . . Slashing 729 | . . . . . . . 484 . . . . 245 Piercing . | . . . . . . . . . . . . . Highest Corruption . | . . . . . . . . . . . . . Average Corruption . | . . . . . . . . . . . . . Corruption Purged . | . . . . . . . . . . . . . Overload Shots . | . . . . . . . . . . . . . Overflow Damage 176 | . . 28 1 . . 11 . . 18 60 15 43 Projectiles 8 | . . . . . . . . . 8 . . . Explosions 125 | . . 28 1 . . 11 . . 10 60 15 . Melee 43 | . . . . . . . . . . . . 43 Knockbacks . | . . . . . . . . . . . . . Impact . | . . . . . . . . . . . . . Kinetic . | . . . . . . . . . . . . . Secondary . | . . . . . . . . . . . . . Self-Inflicted Damage 301 | . . . 143 . . . . 20 28 65 45 . Shots 14 | . . . 7 . . . . 1 1 3 2 . Rammed 1 | . . . . . . . . . 1 . . . Targets Rammed 1 | . . . . . . . . . 1 . . . Kicked . | . . . . . . . . . . . . . Crushed . | . . . . . . . . . . . . . Highest Temperature 366 | . 2 5 295 366 . . 17 . 6 . . 3 Average Temperature 59 | . 1 3 32 168 . . 10 . 6 . . 2 Received Heat Transfer 1516 | . 138 42 273 160 . . 144 144 72 306 81 156 Effects 2 | . . . . 2 . . . . . . . . Shutdowns 1 | . . . . 1 . . . . . . . . Interference 1 | . . . . 1 . . . . . . . . Siege Activations . | . . . . . . . . . . . . . Robots Corrupted . | . . . . . . . . . . . . . Combat Hostiles . | . . . . . . . . . . . . . Parts Fried 4 | . . . 4 . . . . . . . . . Impact Corruptions . | . . . . . . . . . . . . . Robots Melted . | . . . . . . . . . . . . . Combat Hostiles . | . . . . . . . . . . . . . Parts Melted 2 | . . . . . . . . . 2 . . . Heat Transferred 1087 | . . . 150 . . . . . 700 200 . 37 Parts Sabotaged . | . . . . . . . . . . . . . Parts Stolen . | . . . . . . . . . . . . . Parts Stripped . | . . . . . . . . . . . . . Power Chain Reactions 3 | . . . 3 . . . . . . . . . Missiles Intercepted . | . . . . . . . . . . . . . Alert | -11 -10 -10 -9 -9 -9 -8 -8 -8 -7 -7 -7 -7 ------- Run | Scr Mat Min Mat Min Exi Min Mat Gar Fac Low Low Dat Peak Influence 527 | . 321 96 495 160 . 130 281 527 363 . . . Initial 276 | . . 46 23 160 . . 50 52 276 . . . Average 172 | . 180 76 262 153 . 30 144 333 118 . . . Maximum Alert Level 2 | . 1 . 2 . . . 1 2 1 . . . Low Security (%) 65 | 100 59 100 35 100 . 100 86 29 74 . . . Level 1 25 | . 40 . 49 . . . 13 30 25 . . . Level 2 9 | . . . 15 . . . . 39 . . . . Level 3 . | . . . . . . . . . . . . . Level 4 . | . . . . . . . . . . . . . Level 5 . | . . . . . . . . . . . . . High Security . | . . . . . . . . . . . . . Max Security . | . . . . . . . . . . . . . Squads Dispatched 12 | . 1 . 2 . . . 3 . 5 . 1 . Investigation . | . . . . . . . . . . . . . Extermination 3 | . . . . . . . . . 3 . . . Reinforcement 7 | . 1 . 2 . . . 2 . 2 . . . Assault 1 | . . . . . . . . . . . 1 . Garrison 1 | . . . . . . . 1 . . . . . Intercept . | . . . . . . . . . . . . . Construction Impeded . | . . . . . . . . . . . . . Haulers Reinforced . | . . . . . . . . . . . . . Stealth | -11 -10 -10 -9 -9 -9 -8 -8 -8 -7 -7 -7 -7 --------- Run | Scr Mat Min Mat Min Exi Min Mat Gar Fac Low Low Dat Distress Signals 7 | . 1 . 3 1 . . 2 . . . . . Communications Jammed . | . . . . . . . . . . . . . Distress Signals . | . . . . . . . . . . . . . Times Spotted 130 | . 15 5 38 3 . 3 14 11 17 10 10 4 Peak Tracking Total 7 | . 4 2 4 2 . 3 6 3 4 7 7 4 Tactical Retreats 11 | . . . 7 1 . . 1 . 1 . 1 . Traps | -11 -10 -10 -9 -9 -9 -8 -8 -8 -7 -7 -7 -7 ------- Run | Scr Mat Min Mat Min Exi Min Mat Gar Fac Low Low Dat Traps Triggered 9 | . . . . . . . . 5 4 . . . Indirectly . | . . . . . . . . . . . . . Trap Hack Attempts . | . . . . . . . . . . . . . Triggered . | . . . . . . . . . . . . . Disarmed . | . . . . . . . . . . . . . Reprogrammed . | . . . . . . . . . . . . . Reused . | . . . . . . . . . . . . . Traps Extracted . | . . . . . . . . . . . . . Installed 3 | . . . . . 3 . . . . . . . Triggered . | . . . . . . . . . . . . . Machines | -11 -10 -10 -9 -9 -9 -8 -8 -8 -7 -7 -7 -7 ---------- Run | Scr Mat Min Mat Min Exi Min Mat Gar Fac Low Low Dat Machines Disabled 10 | . . . 4 . . 1 . 2 2 . . 1 Max in Single Turn 1 | . . . 1 . . 1 . 1 1 . . 1 Garrison Relay 2 | . . . . . . . . 2 . . . . Machines Sabotaged . | . . . . . . . . . . . . . Garrisons Compromised . | . . . . . . . . . . . . . Overloaded Fab Kills . | . . . . . . . . . . . . . Fab Network Shutdowns . | . . . . . . . . . . . . . Hacking | -11 -10 -10 -9 -9 -9 -8 -8 -8 -7 -7 -7 -7 --------- Run | Scr Mat Min Mat Min Exi Min Mat Gar Fac Low Low Dat Machines Accessed 16 | . 1 . 2 . 2 . 3 . 5 . . 3 Terminals 9 | . 1 . 2 . . . 1 . 5 . . . Fabricators . | . . . . . . . . . . . . . Repair Stations . | . . . . . . . . . . . . . Recycling Units . | . . . . . . . . . . . . . Scanalyzers 1 | . . . . . . . 1 . . . . . Garrison Access 1 | . . . . . . . 1 . . . . . Total Hacks 54 | . 3 . 5 . 2 . 12 . 10 . . 22 Successful 41 | . 3 . 4 . 2 . 6 . 4 . . 22 Failed 13 | . . . 1 . . . 6 . 6 . . . Catastrophic . | . . . . . . . . . . . . . Database Lockouts . | . . . . . . . . . . . . . Manual 23 | . 3 . 5 . 1 . 7 . 7 . . . Terminals 26 | . 3 . 5 . . . 8 . 10 . . . Fabricators . | . . . . . . . . . . . . . Repair Stations . | . . . . . . . . . . . . . Recycling Units . | . . . . . . . . . . . . . Scanalyzers 2 | . . . . . . . 2 . . . . . Garrison Access 2 | . . . . . . . 2 . . . . . Terminal Hacks 32 | . 2 . 2 . 2 . 1 . 3 . . 22 Record 7 | . . . . . 1 . . . . . . 6 Part Schematic 9 | . . . . . . . . . . . . 9 Robot Schematic 4 | . . . . . . . . . . . . 4 Robot Analysis 3 | . 1 . 1 . . . . . 1 . . . Prototype ID Bank 3 | . . . . . . . . . . . . 3 Branch Access Points 1 | . . . . . . . . . 1 . . . Unreport Threat 1 | . . . . . . . . . 1 . . . Hauler Manifests 1 | . . . . . . . 1 . . . . . Zone Layout 2 | . 1 . 1 . . . . . . . . . EX-Prototype ID Bank 1 | . . . . . 1 . . . . . . . Fabricator Hacks . | . . . . . . . . . . . . . Repair Station Hacks . | . . . . . . . . . . . . . Recycling Unit Hacks . | . . . . . . . . . . . . . Scanalyzer 2 | . . . . . . . 2 . . . . . Insert Component 1 | . . . . . . . 1 . . . . . Analyze 1 | . . . . . . . 1 . . . . . Garrison Access Hacks 1 | . . . . . . . 1 . . . . . Unlock Access 1 | . . . . . . . 1 . . . . . Unauthorized Hacks 6 | . 1 . 2 . . . 2 . 1 . . . Terminals 6 | . 1 . 2 . . . 2 . 1 . . . Track 3 | . 1 . 1 . . . 1 . . . . . Assimilate 2 | . . . 1 . . . . . 1 . . . Botnet 1 | . . . . . . . 1 . . . . . Fabricators . | . . . . . . . . . . . . . Repair Stations . | . . . . . . . . . . . . . Recycling Units . | . . . . . . . . . . . . . Scanalyzers . | . . . . . . . . . . . . . Garrison Access . | . . . . . . . . . . . . . Data Cores Recovered 1 | . . . 1 . . . . . . . . . Used 1 | . . . 1 . . . . . . . . . Hacking Detections 10 | . 1 . 2 . . . 2 . 5 . . . Full Trace Events . | . . . . . . . . . . . . . Feedback Events . | . . . . . . . . . . . . . Feedback Blocked . | . . . . . . . . . . . . . Robot Schematics Acquired 4 | . . . . . . . . . . . . 4 Robots Built . | . . . . . . . . . . . . . Matter . | . . . . . . . . . . . . . Time . | . . . . . . . . . . . . . Total Robot Build Rating . | . . . . . . . . . . . . . Part Schematics Acquired 10 | . . . . . . . 1 . . . . 9 Parts Built . | . . . . . . . . . . . . . Matter . | . . . . . . . . . . . . . Time . | . . . . . . . . . . . . . Total Part Build Rating . | . . . . . . . . . . . . . Parts Repaired . | . . . . . . . . . . . . . Time . | . . . . . . . . . . . . . Parts Recycled . | . . . . . . . . . . . . . Recycled Matter . | . . . . . . . . . . . . . Retrieved Matter . | . . . . . . . . . . . . . Retrieved Components . | . . . . . . . . . . . . . Parts Scanalyzed 1 | . . . . . . . 1 . . . . . Part Schematics Acquired 1 | . . . . . . . 1 . . . . . Parts Damaged . | . . . . . . . . . . . . . Bothacking | -11 -10 -10 -9 -9 -9 -8 -8 -8 -7 -7 -7 -7 ------------ Run | Scr Mat Min Mat Min Exi Min Mat Gar Fac Low Low Dat Used RIF Installer 1 | . . . . . . . . 1 . . . . Robots Hacked 2 | . . . . . . . . . 1 1 . . Non-combat . | . . . . . . . . . . . . . Combat 2 | . . . . . . . . . 1 1 . . Robot Hacks Applied 2 | . . . . . . . . . 1 1 . . overwrite_iff 1 | . . . . . . . . . . 1 . . formatsys_high 1 | . . . . . . . . . 1 . . . Relay Couplers Released 6 | . . . . . . . . 6 . . . . Machine Destruction 6 | . . . . . . . . 6 . . . . Attached 3 | . . . . . . . . 1 1 1 . . Robots Rewired 2 | . . . . . . . . . . . 2 . Allies Hacked . | . . . . . . . . . . . . . Hacks Repelled . | . . . . . . . . . . . . . Allies | -11 -10 -10 -9 -9 -9 -8 -8 -8 -7 -7 -7 -7 -------- Run | Scr Mat Min Mat Min Exi Min Mat Gar Fac Low Low Dat Total Allies 4 | . . . . . . . . . 1 1 2 . Largest Group 2 | . . . . . . . . . 1 1 2 2 Highest-Rated Group 48 | . . . . . . . . . 32 30 48 44 Highest-Rated Ally 32 | . . . . . . . . . 32 30 32 28 Total Orders 2 | . . . . . . . . . . . 1 1 STAY 1 | . . . . . . . . . . . . 1 FOLLOW 1 | . . . . . . . . . . . 1 . Ally Attacks 21 | . . . . . . . . . 1 3 13 4 Total Damage 598 | . . . . . . . . . 44 104 390 60 Kills 2 | . . . . . . . . . . 1 1 . Allies Corrupted . | . . . . . . . . . . . . . Allies Melted . | . . . . . . . . . . . . . Intel | -11 -10 -10 -9 -9 -9 -8 -8 -8 -7 -7 -7 -7 ------- Run | Scr Mat Min Mat Min Exi Min Mat Gar Fac Low Low Dat Robot Analysis Total 3 | . 1 . 1 . . . . . 1 . . . Derelict Logs Recovered 6 | . . 2 . . . . . . . 2 2 . Drone Launches . | . . . . . . . . . . . . . Drone Recoveries . | . . . . . . . . . . . . . Exploration | -11 -10 -10 -9 -9 -9 -8 -8 -8 -7 -7 -7 -7 ------------- Run | Scr Mat Min Mat Min Exi Min Mat Gar Fac Low Low Dat Turns Passed 9012 | 68 420 601 1244 222 684 572 400 968 1903 763 954 213 Spaces Moved 4415 | 41 201 356 589 105 349 283 152 425 932 398 496 88 Core 7 | 7 . . . . . . . . . . . . Treads 4408 | 34 201 356 589 105 349 283 152 425 932 398 496 88 Legs . | . . . . . . . . . . . . . Wheels . | . . . . . . . . . . . . . Hover . | . . . . . . . . . . . . . Flight . | . . . . . . . . . . . . . Fastest Speed 50 | 50 160 160 160 180 180 200 180 180 180 177 177 185 Average Speed 178 | 141 160 160 161 180 191 200 199 187 181 180 179 185 Slowest Speed 230 | 160 160 160 180 180 200 200 200 200 200 200 230 185 Overloaded Moves . | . . . . . . . . . . . . . Propulsion Burnouts . | . . . . . . . . . . . . . Robots Hopped . | . . . . . . . . . . . . . Cave-ins Triggered . | . . . . . . . . . . . . . Exploration Rate (%) 49 | 3 40 82 54 21 70 73 14 45 23 64 73 76 Regions Visited 12 Branch Regions 7 Pre-discovered Areas 5 | . . 1 . . 1 . . . . . 2 1 Known Exits Taken 4 | . . 1 . . . . 1 . 1 . 1 . Unknown Exits Taken 7 | 1 1 . 1 1 1 1 . . . 1 . . Scrap Searched 10 | . . 1 . . . 1 . . . 5 3 . Spaces Dug 24 | . . . . 9 . 7 3 . 5 . . . Terrain Destroyed 268 | . . 10 58 17 . 24 3 33 24 48 35 16 Melee 3 | . . . . . . . 3 . . . . . Projectile . | . . . . . . . . . . . . . AOE 265 | . . 10 58 17 . 24 . 33 24 48 35 16 Terrain Rammed . | . . . . . . . . . . . . . Walls Destroyed . | . . . . . . . . . . . . . Machines Disabled . | . . . . . . . . . . . . . Actions | -11 -10 -10 -9 -9 -9 -8 -8 -8 -7 -7 -7 -7 --------- Run | Scr Mat Min Mat Min Exi Min Mat Gar Fac Low Low Dat Total 5126 | 49 239 371 784 120 367 286 202 548 1080 429 535 116 Wait 233 | . 1 . 59 5 . . 12 62 77 11 4 2 Move 4404 | 40 200 355 588 104 348 282 152 424 931 397 495 88 Hop . | . . . . . . . . . . . . . Pick Up 53 | 3 5 4 17 . 3 . 5 7 5 2 2 . Fast Attach 25 | 5 1 . 11 . . . . 5 1 . 2 . Attach 24 | 1 . 1 1 . 1 . 2 . 3 5 4 6 Detach 2 | . . . 1 . . . . 1 . . . . Swap 51 | . 1 2 15 1 4 . 2 8 9 3 2 4 Drop 51 | . 1 . 27 . 8 . 1 7 6 1 . . Fire 224 | . 30 9 65 10 . 4 7 28 40 10 15 6 Melee 31 | . . . . . . . 21 . . . . 10 Ram . | . . . . . . . . . . . . . Kick . | . . . . . . . . . . . . . Crush 1 | . . . . . . . . . 1 . . . Escape Stasis 12 | . . . . . . . . 6 6 . . . Rewire 12 | . . . . . . . . . 1 . 11 . Trap 3 | . . . . . 3 . . . . . . . Miscellaneous . | . . . . . . . . . . . . . Route ------- -11/Scrapyard -10/Materials (discovered 2 exits: *Mat / [*Min]) -10/Mines (discovered 2 exits: *Mat x2) -9/Materials (discovered 2 exits: *Mat / [*Min]) -9/Mines -9/Exiles -8/Mines -8/Materials -8/Garrison -7/Factory (discovered 2 exits: *Low x2) -7/Lower Caves -7/Lower Caves -7/Data Miner (discovered 1 exit: [*Pro]) History --------- Turn | Location | Event 4 | -11/Scrapyard | Discovered new exit (range 15) 69 | -11/Scrapyard | Entered Materials 307 | -10/Materials | Build established: Mutant 345 | -10/Materials | Discovered new exit (range 16) 450 | -10/Materials | Discovered new exit (range 16) 489 | -10/Materials | Entered Mines 640 | -10/Mines | Identified exit to Materials 742 | -10/Mines | Learned Materials non-interactive machine intel 760 | -10/Mines | Found a hidden stash of uninstalled traps 1026 | -10/Mines | Discovered exit to Materials (range 6) 1056 | -10/Mines | Learned location of Storage (-8) 1090 | -10/Mines | Entered Materials 1090 | -9/Materials | Evolved 2 slots: Utility x2 1091 | -9/Materials | Loaded intel: 36 non-interactive machine locations 1730 | -9/Materials | Build established: Scavenger-Mutant 1939 | -9/Materials | Discovered new exit (range 15) 2301 | -9/Materials | Discovered new exit (range 11) 2304 | -9/Materials | Build established: Mutant 2334 | -9/Materials | Entered Mines 2335 | -9/Mines | Assembled infested the area 2547 | -9/Mines | Deemed a non-threat by the Exiles lab entrance 2549 | -9/Mines | Discovered new exit (range 5) 2556 | -9/Mines | Entered Exiles 2601 | -9/Exiles | Met 8R-AWN 2604 | -9/Exiles | Build established: Scavenger-Mutant 2644 | -9/Exiles | Met EX-HEX 2741 | -9/Exiles | Met EX-DEC 2777 | -9/Exiles | Learned location of Zion (-6) 2949 | -9/Exiles | Met EX-BIN 2978 | -9/Exiles | Aligned with FarCom system 2980 | -9/Exiles | Given EX-Vault access code 3028 | -9/Exiles | Opened EX-Vault 3042 | -9/Exiles | Found Lightpack 2.0 3084 | -9/Exiles | Warned to stay clear of 0b10 Research branches 3144 | -9/Exiles | Build established: Hauler-Mutant 3216 | -9/Exiles | Discovered new exit (range 14) 3240 | -9/Exiles | Left Exiles lab with Lightpack 2.0 3240 | -9/Exiles | Entered Mines 3728 | -8/Mines | Discovered new exit (range 13) 3812 | -8/Mines | Entered Materials 3812 | -8/Materials | Evolved 2 slots: Utility x2 4115 | -8/Materials | Build established: Scavenger-Mutant 4176 | -8/Materials | Garrison activated, responded to threat 4212 | -8/Materials | Identified exit to Garrison 4212 | -8/Materials | Entered Garrison 4239 | -8/Garrison | Lost 3 parts (3u) 4424 | -8/Garrison | Triggered checkpoint 4492 | -8/Garrison | Discovered new exit (range 15) 4538 | -8/Garrison | Installed Relay Interface Framework 4590 | -8/Garrison | Triggered checkpoint 4619 | -8/Garrison | Garrison Relay disabled 4914 | -8/Garrison | Triggered checkpoint 4965 | -8/Garrison | Garrison Relay disabled 5180 | -8/Garrison | Entered Factory 5180 | -7/Factory | Evolved 2 slots: Utility x2 5817 | -7/Factory | Discovered new exit (range 15) 6539 | -7/Factory | Build established: Bothacker-Mutant 6661 | -7/Factory | Identified exit to Lower Caves 7083 | -7/Factory | Entered Lower Caves 7426 | -7/Lower Caves | Encountered a Warlord checkpoint 7662 | -7/Lower Caves | Learned Factory garrison access intel 7689 | -7/Lower Caves | Learned Factory garrison access intel 7740 | -7/Lower Caves | Discovered new exit (range 8) 7797 | -7/Lower Caves | Attracted the attention of an 0b10 base 7846 | -7/Lower Caves | Entered another Lower Caves area 7869 | -7/Lower Caves | Lost 6 parts (1p2n1u2w) 8295 | -7/Lower Caves | Spotted B-75 Beast 8432 | -7/Lower Caves | Discovered new exit (range 15) 8455 | -7/Lower Caves | Identified exit to Data Miner 8476 | -7/Lower Caves | Learned location of Extension (-4) 8520 | -7/Lower Caves | Attracted the attention of an 0b10 outpost 8800 | -7/Lower Caves | Entered Data Miner 8800 | -7/Data Miner | Accompanied by 2 allies 8800 | -7/Data Miner | Discovered new exit (range 6) 8836 | -7/Data Miner | Met Data Miner 8869 | -7/Data Miner | Learned location of Section 7 (-2) 8869 | -7/Data Miner | Acquired the access code to Warlord's prototype stash 8897 | -7/Data Miner | Received God Mode back door access code from Data Miner 8963 | -7/Data Miner | Data Conduit disabled 8964 | -7/Data Miner | Core integrity fell below 50% 9013 | -7/Data Miner | Core integrity fell below 20% 9013 | -7/Data Miner | Destroyed by Enhanced Grunt with Neutron Cannon Last Messages --------------- Data Miner: I've just received further instructions. God Mode is nearly complete and we think you might be able to put it to better use than Warlord, so if you see an opportunity, hack it and enter \\79PT to gain control via the back door I've installed. Now off with you. 08954_ Sneak attack on Data Miner. 08954_ Destroyed Lgt. Angular Momentum Engine. 08954_ Data Miner disappears through a trap door. 08957_ Trooper 4a destroyed. 08961_ Guardian 4b destroyed. 08963_ Data Conduit disabled. 08967_ Rocket Launcher destroyed. 08996_ Enhanced Grunt destroyed. 08999_ Arm. Treads destroyed. 09002_ Hvy. Assault Rifle destroyed. 09004_ Chainsword destroyed. 09004_ Imp. Treads destroyed. 09006_ Gauss Rifle destroyed. 09009_ Lgt. Treads destroyed. 09010_ Hvy. Assault Rifle destroyed. Map ----- +----------------------------------------------------+ | | | | | | | | | | | | | | | | | | | | | | | | | | | | | | | | | | | | | ????????????????????????????????? | | ????????????????????????????????? | | ????????????????????????????????? | | ????????????????????????????????? | | ????????????????????????????????? | | ????#################???????????? | | ????#""""gg"""""""""# ??????? | | ???#""""@g" " "" ###### | | ??#""""""" "" | | ???""""""" | | ???""""""" % | | ???"""""" !%* | | ????"""""" = | | ????"""""" """"""" | | ????""""""" """####### | | ?????"""""" """""###?????? | | ??????""""""" "#####???????? | | ??????######"## "#???????????? | | ???????????#"### "#???????????? | | ???????????#"### "#???????????? | | ???????????#"?# "#???????????? | | ?????????????## "#???????????? | | ?????????????# "#???????????? | | ?????????????### "#???????????? | | ???????????????# "##??????????? | | ??????????????## ""#??????????? | | ?????????????## ""#??????????? | | ??????????##"#"X ""#??????????? | | ??????????""""" "####???????? | | ??????????""""" X"""""???????? | | ??????????##"#"X "##"#???????? | | ???????????#"## X""""#???????? | +----------------------------------------------------+ Best States ------------- Heat Dissipation 64 Energy Generation 18 Energy Capacity 280 Matter Stores 300 Matter Capacity 300 Sight Range 16 Terrain Scan Density 10 Armor Coverage 450 Evasion (%) 40 Recoil Reduction 2 Relay Coupler Types 42 Relay Coupler Value 3 Item Schematics ----------------- Hcp. Storage Unit | -8/Materials | Scanalyzed Combat Drone Bay | -7/Data Miner | Free Lgt. Regenerative Plating | -7/Data Miner | Free Exp. Flexi-carbon Leg | -7/Data Miner | Free Cmb. Gravmag System | -7/Data Miner | Free Exp. Cesium-ion Thruster | -7/Data Miner | Free Exp. Terrain Scanner | -7/Data Miner | Free Exp. Transmission Jammer | -7/Data Miner | Free Exp. ECM Suite | -7/Data Miner | Free Cloaking Device | -7/Data Miner | Free Robot Schematics ------------------ S-27 Virus | -7/Data Miner | Free G-50 Soldier | -7/Data Miner | Free L-41 Fighter | -7/Data Miner | Free I-36 Angel | -7/Data Miner | Free Fabricated ------------ Nothing Alien Tech Used ----------------- None Achievements -------------- None Challenges ------------ None Game ------ Seed ReactionOmegaShockpuncher Manual? 0 Play Time 00:45:20 Cumulative 199.2 hours Start 2021.07.08 @ 17:11:17 End 2021.07.08 @ 18:09:40 Sessions 3 Manual Loads 0 Difficulty Rogue Special Mode None Game No. 254 Rogue 167 Adventurer 87 Explorer 0 Win Type - Total 4 Types 3/0/0/1/0/0/0/0/0 Lore% 68 Gallery% 76 Achievement% 62 Wizard Run 0 Options --------- ASCII 0 Keyboard 1 Movement Numpad Keybinds 0 Fullscreen 1 Font 18/Smallcaps Map View 76x50 Tactical HUD 1 Map Filters NONE Filters NONE Steam 1 RUN: d19fbf2f-7dec-415d-a324-9287131f6652